[Event "January 9 Early 2024"]
[Site "https://www.chess.com"]
[Date "2024.01.11"]
[Round "10"]
[White "Potkin, Vladimir"]
[Black "Horak, Martin"]
[Result "1-0"]
[Board "130"]
[TimeControl "180+1"]
[WhiteFideId "4131061"]
[BlackFideId "367095"]
[WhiteElo "2664"]
[BlackElo "2519"]
[WhiteTeam "RUS"]
[BlackTeam "CZE"]
[WhiteClock "0:00:11"]
[BlackClock "0:00:01"]

1. Nf3 {[%clk 0:03:00]}  d5 {[%clk 0:02:59]} 2. e3 {[%clk 0:03:00]}  Nf6 {[%clk 0:02:59]} 3. c4 {[%clk 0:03:01]}  e6 {[%clk 0:02:59]} 4. b3 {[%clk 0:03:01]}  Be7 {[%clk 0:02:59]} 5. Bb2 {[%clk 0:03:02]}  O-O {[%clk 0:03:00]} 6. Nc3 {[%clk 0:03:02]}  b6 {[%clk 0:02:37]} 7. cxd5 {[%clk 0:03:02]}  exd5 {[%clk 0:02:38]} 8. g3 {[%clk 0:03:02]}  Bb7 {[%clk 0:02:36]} 9. Bg2 {[%clk 0:03:02]}  Ba6 {[%clk 0:02:16]} 10. d3 {[%clk 0:03:01]}  Nbd7 {[%clk 0:02:16]} 11. O-O {[%clk 0:03:00]}  Nc5 {[%clk 0:02:15]} 12. Ne1 {[%clk 0:02:59]}  c6 {[%clk 0:02:13]} 13. Rc1 {[%clk 0:02:53]}  Rc8 {[%clk 0:02:12]} 14. b4 {[%clk 0:02:49]}  Ne6 {[%clk 0:02:11]} 15. Qa4 {[%clk 0:02:49]}  Bb7 {[%clk 0:01:52]} 16. Qxa7 {[%clk 0:02:45]}  Qc7 {[%clk 0:01:27]} 17. Qa4 {[%clk 0:02:30]}  d4 {[%clk 0:01:10]} 18. Nd5 {[%clk 0:01:10]}  Nxd5 {[%clk 0:01:06]} 19. Bxd5 {[%clk 0:01:11]}  dxe3 {[%clk 0:00:55]} 20. fxe3 {[%clk 0:01:12]}  Qd6 {[%clk 0:00:48]} 21. Bxe6 {[%clk 0:00:49]}  Qxe6 {[%clk 0:00:49]} 22. Ng2 {[%clk 0:00:48]}  Ra8 {[%clk 0:00:47]} 23. Qb3 {[%clk 0:00:46]}  Rxa2 {[%clk 0:00:45]} 24. Qxe6 {[%clk 0:00:45]}  fxe6 {[%clk 0:00:46]} 25. Rxf8+ {[%clk 0:00:42]}  Bxf8 {[%clk 0:00:45]} 26. Bd4 {[%clk 0:00:38]}  c5 {[%clk 0:00:39]} 27. bxc5 {[%clk 0:00:31]}  Rxg2+ {[%clk 0:00:38]} 28. Kf1 {[%clk 0:00:32]}  Bxc5 {[%clk 0:00:31]} 29. Bxc5 {[%clk 0:00:31]}  bxc5 {[%clk 0:00:32]} 30. Rxc5 {[%clk 0:00:22]}  Bf3 {[%clk 0:00:26]} 31. Rc8+ {[%clk 0:00:20]}  Kf7 {[%clk 0:00:26]} 32. Rc4 {[%clk 0:00:20]}  e5 {[%clk 0:00:18]} 33. Rc7+ {[%clk 0:00:17]}  Kf6 {[%clk 0:00:18]} 34. Rc8 {[%clk 0:00:15]}  e4 {[%clk 0:00:12]} 35. dxe4 {[%clk 0:00:13]}  Bxe4 {[%clk 0:00:11]} 36. Re8 {[%clk 0:00:12]}  Bd5 {[%clk 0:00:09]} 37. Rd8 {[%clk 0:00:12]}  Rd2 {[%clk 0:00:06]} 38. Ke1 {[%clk 0:00:11]}  Rd3 {[%clk 0:00:03]} 39. Ke2 {[%clk 0:00:11]}  Bc4 {[%clk 0:00:02]} 40. Rxd3 {[%clk 0:00:10]}  Ke5 {[%clk 0:00:01]} 41. Kd2 {[%clk 0:00:11]} 1-0

[Event "January 9 Early 2024"]
[Site "https://www.chess.com"]
[Date "2024.01.11"]
[Round "10"]
[White "Topalov, Aleksandar"]
[Black "Filgueira, Hernan"]
[Result "1-0"]
[Board "132"]
[TimeControl "180+1"]
[WhiteFideId "925659"]
[BlackFideId "101770"]
[WhiteElo "2442"]
[BlackElo "2547"]
[WhiteTeam "SRB"]
[BlackTeam "ARG"]
[WhiteClock "0:00:10"]
[BlackClock "0:00:03"]

1. b3 {[%clk 0:03:00]}  d5 {[%clk 0:02:56]} 2. Bb2 {[%clk 0:03:01]}  c5 {[%clk 0:02:56]} 3. e3 {[%clk 0:03:00]}  a6 {[%clk 0:02:57]} 4. f4 {[%clk 0:02:58]}  Nc6 {[%clk 0:02:57]} 5. Nf3 {[%clk 0:02:58]}  Bg4 {[%clk 0:02:56]} 6. Be2 {[%clk 0:02:58]}  e6 {[%clk 0:02:57]} 7. O-O {[%clk 0:02:57]}  Nf6 {[%clk 0:02:56]} 8. Ne5 {[%clk 0:02:55]}  Bxe2 {[%clk 0:02:52]} 9. Qxe2 {[%clk 0:02:54]}  Qc7 {[%clk 0:02:48]} 10. Nxc6 {[%clk 0:02:51]}  Qxc6 {[%clk 0:02:47]} 11. d3 {[%clk 0:02:48]}  Be7 {[%clk 0:02:46]} 12. Nd2 {[%clk 0:02:47]}  Rg8 {[%clk 0:02:30]} 13. Nf3 {[%clk 0:02:46]}  Nd7 {[%clk 0:02:28]} 14. e4 {[%clk 0:02:44]}  dxe4 {[%clk 0:02:25]} 15. dxe4 {[%clk 0:02:43]}  O-O-O {[%clk 0:02:18]} 16. Rad1 {[%clk 0:02:42]}  Bf6 {[%clk 0:02:14]} 17. e5 {[%clk 0:02:31]}  Be7 {[%clk 0:02:14]} 18. c4 {[%clk 0:02:31]}  h6 {[%clk 0:02:02]} 19. Rd3 {[%clk 0:02:27]}  g5 {[%clk 0:02:01]} 20. fxg5 {[%clk 0:02:27]}  hxg5 {[%clk 0:01:59]} 21. Nd2 {[%clk 0:02:21]}  Rgf8 {[%clk 0:01:50]} 22. Rdf3 {[%clk 0:02:20]}  Nb8 {[%clk 0:01:28]} 23. Rxf7 {[%clk 0:02:17]}  Rxf7 {[%clk 0:01:28]} 24. Rxf7 {[%clk 0:02:16]}  Qe8 {[%clk 0:01:29]} 25. Rf1 {[%clk 0:02:06]}  Nc6 {[%clk 0:01:25]} 26. Ne4 {[%clk 0:02:05]}  Qg6 {[%clk 0:01:24]} 27. Nf6 {[%clk 0:01:29]}  Kb8 {[%clk 0:00:52]} 28. Rd1 {[%clk 0:01:16]}  Rxd1+ {[%clk 0:00:33]} 29. Qxd1 {[%clk 0:01:16]}  Ka7 {[%clk 0:00:33]} 30. h3 {[%clk 0:01:13]}  Qf5 {[%clk 0:00:32]} 31. Ng4 {[%clk 0:00:55]}  Qe4 {[%clk 0:00:26]} 32. Kh2 {[%clk 0:00:46]}  a5 {[%clk 0:00:19]} 33. Qd2 {[%clk 0:00:41]}  a4 {[%clk 0:00:18]} 34. Bc3 {[%clk 0:00:38]}  axb3 {[%clk 0:00:15]} 35. axb3 {[%clk 0:00:38]}  Qb1 {[%clk 0:00:16]} 36. Qb2 {[%clk 0:00:36]}  Qe4 {[%clk 0:00:15]} 37. Qd2 {[%clk 0:00:31]}  Nd4 {[%clk 0:00:11]} 38. b4 {[%clk 0:00:20]}  Ne2 {[%clk 0:00:06]} 39. b5 {[%clk 0:00:15]}  Nf4 {[%clk 0:00:05]} 40. b6+ {[%clk 0:00:12]}  Kxb6 {[%clk 0:00:04]} 41. Ba5+ {[%clk 0:00:12]}  Kc6 {[%clk 0:00:03]} 42. Qa2 {[%clk 0:00:10]} 1-0

[Event "January 9 Early 2024"]
[Site "https://www.chess.com"]
[Date "2024.01.11"]
[Round "10"]
[White "Vestby-Ellingsen, Mads"]
[Black "Bindrich, Falko"]
[Result "0-1"]
[Board "135"]
[TimeControl "180+1"]
[WhiteFideId "1520857"]
[BlackFideId "4676670"]
[WhiteElo "2647"]
[BlackElo "2829"]
[WhiteTeam "NOR"]
[BlackTeam "GER"]
[WhiteClock "0:00:01"]
[BlackClock "0:00:20"]

1. e4 {[%clk 0:03:00]}  e5 {[%clk 0:02:57]} 2. Nf3 {[%clk 0:03:00]}  Nc6 {[%clk 0:02:58]} 3. Bc4 {[%clk 0:03:00]}  Bc5 {[%clk 0:02:58]} 4. b4 {[%clk 0:03:00]}  Bxb4 {[%clk 0:02:58]} 5. c3 {[%clk 0:03:00]}  Be7 {[%clk 0:02:58]} 6. d4 {[%clk 0:03:00]}  Na5 {[%clk 0:02:58]} 7. Be2 {[%clk 0:02:58]}  d6 {[%clk 0:02:59]} 8. O-O {[%clk 0:02:53]}  c6 {[%clk 0:02:57]} 9. dxe5 {[%clk 0:02:45]}  dxe5 {[%clk 0:02:58]} 10. Qxd8+ {[%clk 0:02:43]}  Bxd8 {[%clk 0:02:58]} 11. Nxe5 {[%clk 0:02:43]}  Nf6 {[%clk 0:02:58]} 12. f3 {[%clk 0:02:42]}  O-O {[%clk 0:02:58]} 13. Nc4 {[%clk 0:02:39]}  Be6 {[%clk 0:02:56]} 14. Nba3 {[%clk 0:02:29]}  b5 {[%clk 0:02:55]} 15. Ne5 {[%clk 0:02:01]}  Bb6+ {[%clk 0:02:51]} 16. Kh1 {[%clk 0:02:00]}  Rfd8 {[%clk 0:02:50]} 17. Bf4 {[%clk 0:01:51]}  Nh5 {[%clk 0:02:40]} 18. Bc1 {[%clk 0:01:50]}  Nf6 {[%clk 0:02:36]} 19. Nc2 {[%clk 0:01:38]}  Nd7 {[%clk 0:02:31]} 20. Nxd7 {[%clk 0:01:34]}  Rxd7 {[%clk 0:02:32]} 21. f4 {[%clk 0:01:02]}  Rad8 {[%clk 0:02:24]} 22. Bf3 {[%clk 0:00:49]}  Bc4 {[%clk 0:02:14]} 23. Re1 {[%clk 0:00:49]}  Bf2 {[%clk 0:02:15]} 24. Be3 {[%clk 0:00:50]}  Bxe1 {[%clk 0:02:14]} 25. Rxe1 {[%clk 0:00:51]}  Bxa2 {[%clk 0:01:55]} 26. Nb4 {[%clk 0:00:51]}  Bb3 {[%clk 0:01:44]} 27. Ra1 {[%clk 0:00:51]}  Ba4 {[%clk 0:01:42]} 28. e5 {[%clk 0:00:43]}  c5 {[%clk 0:01:42]} 29. Bxc5 {[%clk 0:00:42]}  Nb3 {[%clk 0:01:43]} 30. Bd4 {[%clk 0:00:28]}  Nxd4 {[%clk 0:01:14]} 31. cxd4 {[%clk 0:00:26]}  Rxd4 {[%clk 0:01:15]} 32. Nc6 {[%clk 0:00:25]}  R4d7 {[%clk 0:01:08]} 33. Nxd8 {[%clk 0:00:20]}  Rxd8 {[%clk 0:01:08]} 34. Kg1 {[%clk 0:00:20]}  Rd4 {[%clk 0:00:51]} 35. Rc1 {[%clk 0:00:11]}  g6 {[%clk 0:00:46]} 36. Rc8+ {[%clk 0:00:05]}  Kg7 {[%clk 0:00:47]} 37. Rc7 {[%clk 0:00:05]}  Bb3 {[%clk 0:00:37]} 38. Rxa7 {[%clk 0:00:04]}  Rxf4 {[%clk 0:00:38]} 39. Rb7 {[%clk 0:00:05]}  b4 {[%clk 0:00:32]} 40. Kf2 {[%clk 0:00:03]}  Be6 {[%clk 0:00:30]} 41. Ke3 {[%clk 0:00:03]}  Rc4 {[%clk 0:00:30]} 42. Be2 {[%clk 0:00:03]}  Rc3+ {[%clk 0:00:28]} 43. Kd4 {[%clk 0:00:03]}  Rc2 {[%clk 0:00:26]} 44. Bf3 {[%clk 0:00:02]}  b3 {[%clk 0:00:26]} 45. Kd3 {[%clk 0:00:02]}  Rc5 {[%clk 0:00:24]} 46. Kd4 {[%clk 0:00:01]}  Rc2 {[%clk 0:00:23]} 47. Kd3 {[%clk 0:00:01]}  Bf5+ {[%clk 0:00:20]} 48. Ke3 {[%clk 0:00:01]}  b2 {[%clk 0:00:20]} 0-1

[Event "January 9 Early 2024"]
[Site "https://www.chess.com"]
[Date "2024.01.11"]
[Round "10"]
[White "Onufrienko, Vladislav"]
[Black "Dmitrenko, Viktor"]
[Result "0-1"]
[Board "136"]
[TimeControl "180+1"]
[WhiteFideId "13804332"]
[BlackFideId "14110270"]
[WhiteElo "2599"]
[BlackElo "2475"]
[WhiteTeam "KGZ"]
[BlackTeam "UKR"]
[WhiteClock "0:00:01"]
[BlackClock "0:00:06"]

1. e4 {[%clk 0:03:00]}  e6 {[%clk 0:02:58]} 2. d4 {[%clk 0:02:59]}  d5 {[%clk 0:02:59]} 3. Nc3 {[%clk 0:03:00]}  Bb4 {[%clk 0:02:57]} 4. e5 {[%clk 0:03:00]}  Ne7 {[%clk 0:02:57]} 5. Qg4 {[%clk 0:03:00]}  c5 {[%clk 0:02:13]} 6. a3 {[%clk 0:03:00]}  Ba5 {[%clk 0:01:50]} 7. b4 {[%clk 0:02:43]}  cxd4 {[%clk 0:01:46]} 8. Nb5 {[%clk 0:02:39]}  Bc7 {[%clk 0:01:43]} 9. Nf3 {[%clk 0:02:39]}  Nbc6 {[%clk 0:01:37]} 10. Bf4 {[%clk 0:02:29]}  Ng6 {[%clk 0:01:31]} 11. Bd3 {[%clk 0:02:15]}  Nxf4 {[%clk 0:01:30]} 12. Qxf4 {[%clk 0:02:15]}  a6 {[%clk 0:01:30]} 13. Nxc7+ {[%clk 0:02:08]}  Qxc7 {[%clk 0:01:31]} 14. O-O {[%clk 0:02:07]}  f6 {[%clk 0:01:25]} 15. Rfe1 {[%clk 0:02:04]}  O-O {[%clk 0:01:24]} 16. Qh4 {[%clk 0:01:58]}  h6 {[%clk 0:01:23]} 17. exf6 {[%clk 0:01:46]}  Rxf6 {[%clk 0:01:24]} 18. Nxd4 {[%clk 0:01:43]}  Rf4 {[%clk 0:01:20]} 19. Qh5 {[%clk 0:01:16]}  Nxd4 {[%clk 0:01:14]} 20. Qg6 {[%clk 0:01:01]}  Qf7 {[%clk 0:01:08]} 21. Qh7+ {[%clk 0:00:58]}  Kf8 {[%clk 0:01:08]} 22. c3 {[%clk 0:00:41]}  Nb5 {[%clk 0:01:07]} 23. a4 {[%clk 0:00:30]}  Nd6 {[%clk 0:00:59]} 24. g3 {[%clk 0:00:29]}  Rf6 {[%clk 0:00:53]} 25. Rad1 {[%clk 0:00:23]}  Bd7 {[%clk 0:00:48]} 26. c4 {[%clk 0:00:22]}  Bxa4 {[%clk 0:00:42]} 27. Ra1 {[%clk 0:00:21]}  dxc4 {[%clk 0:00:39]} 28. Rxa4 {[%clk 0:00:20]}  cxd3 {[%clk 0:00:38]} 29. Qxd3 {[%clk 0:00:21]}  e5 {[%clk 0:00:31]} 30. Ra5 {[%clk 0:00:17]}  e4 {[%clk 0:00:28]} 31. Qd1 {[%clk 0:00:16]}  Re8 {[%clk 0:00:28]} 32. Rd5 {[%clk 0:00:13]}  Nc4 {[%clk 0:00:22]} 33. Qd4 {[%clk 0:00:12]}  e3 {[%clk 0:00:17]} 34. fxe3 {[%clk 0:00:11]}  b5 {[%clk 0:00:17]} 35. Rd7 {[%clk 0:00:10]}  Qe6 {[%clk 0:00:14]} 36. e4 {[%clk 0:00:08]}  Qe5 {[%clk 0:00:12]} 37. Qd1 {[%clk 0:00:07]}  Kg8 {[%clk 0:00:10]} 38. Rd5 {[%clk 0:00:06]}  Qe6 {[%clk 0:00:09]} 39. Rd4 {[%clk 0:00:04]}  Ref8 {[%clk 0:00:09]} 40. e5 {[%clk 0:00:04]}  Rf2 {[%clk 0:00:08]} 41. Rde4 {[%clk 0:00:01]}  Qh3 {[%clk 0:00:07]} 42. Rf4 {[%clk 0:00:01]}  Qg2# {[%clk 0:00:06]} 0-1

[Event "January 9 Early 2024"]
[Site "https://www.chess.com"]
[Date "2024.01.11"]
[Round "10"]
[White "Guevara Sanchez, Erick Marvin"]
[Black "Averchenko, Sergej"]
[Result "0-1"]
[Board "137"]
[TimeControl "180+1"]
[WhiteFideId "6700136"]
[BlackFideId "4131533"]
[WhiteElo "2195"]
[BlackElo "2009"]
[WhiteTeam "ESA"]
[BlackTeam "RUS"]
[WhiteClock "0:00:01"]
[BlackClock "0:00:18"]

1. e4 {[%clk 0:03:00]}  c5 {[%clk 0:02:59]} 2. d4 {[%clk 0:02:58]}  cxd4 {[%clk 0:02:59]} 3. c3 {[%clk 0:02:57]}  d5 {[%clk 0:02:59]} 4. exd5 {[%clk 0:02:55]}  Qxd5 {[%clk 0:02:59]} 5. cxd4 {[%clk 0:02:55]}  Nf6 {[%clk 0:02:55]} 6. Nf3 {[%clk 0:02:46]}  Bg4 {[%clk 0:02:54]} 7. Nc3 {[%clk 0:02:42]}  Qd8 {[%clk 0:02:44]} 8. Be2 {[%clk 0:02:23]}  e6 {[%clk 0:02:44]} 9. O-O {[%clk 0:02:22]}  Nc6 {[%clk 0:02:44]} 10. Bg5 {[%clk 0:02:20]}  Be7 {[%clk 0:02:44]} 11. h3 {[%clk 0:02:13]}  Bh5 {[%clk 0:02:43]} 12. Rc1 {[%clk 0:01:51]}  O-O {[%clk 0:02:43]} 13. Be3 {[%clk 0:01:49]}  Nb4 {[%clk 0:02:40]} 14. g4 {[%clk 0:01:43]}  Bg6 {[%clk 0:02:39]} 15. Ne5 {[%clk 0:01:43]}  Nbd5 {[%clk 0:02:33]} 16. Bg5 {[%clk 0:01:40]}  Rc8 {[%clk 0:02:15]} 17. f3 {[%clk 0:01:21]}  Nxc3 {[%clk 0:02:08]} 18. bxc3 {[%clk 0:01:19]}  Nd5 {[%clk 0:02:08]} 19. Bd2 {[%clk 0:01:14]}  Bd6 {[%clk 0:01:59]} 20. f4 {[%clk 0:00:46]}  Qh4 {[%clk 0:01:28]} 21. Kh2 {[%clk 0:00:42]}  f6 {[%clk 0:01:17]} 22. Nf3 {[%clk 0:00:33]}  Qh6 {[%clk 0:01:09]} 23. g5 {[%clk 0:00:25]}  fxg5 {[%clk 0:01:06]} 24. Ne5 {[%clk 0:00:24]}  Bf5 {[%clk 0:00:59]} 25. Bg4 {[%clk 0:00:22]}  gxf4 {[%clk 0:00:56]} 26. c4 {[%clk 0:00:20]}  Ne3 {[%clk 0:00:41]} 27. Bxe3 {[%clk 0:00:19]}  fxe3 {[%clk 0:00:41]} 28. Qe2 {[%clk 0:00:19]}  Bxe5+ {[%clk 0:00:39]} 29. dxe5 {[%clk 0:00:18]}  Bxg4 {[%clk 0:00:38]} 30. Qxg4 {[%clk 0:00:15]}  Rf2+ {[%clk 0:00:39]} 31. Rxf2 {[%clk 0:00:13]}  exf2 {[%clk 0:00:39]} 32. Rd1 {[%clk 0:00:08]}  Rf8 {[%clk 0:00:36]} 33. Kg2 {[%clk 0:00:08]}  f1=Q+ {[%clk 0:00:31]} 34. Rxf1 {[%clk 0:00:07]}  Rxf1 {[%clk 0:00:31]} 35. Kxf1 {[%clk 0:00:05]}  Qc1+ {[%clk 0:00:32]} 36. Kf2 {[%clk 0:00:04]}  Qd2+ {[%clk 0:00:32]} 37. Kf1 {[%clk 0:00:04]}  Qc1+ {[%clk 0:00:27]} 38. Kf2 {[%clk 0:00:04]}  Qb2+ {[%clk 0:00:27]} 39. Kf1 {[%clk 0:00:04]}  Qxe5 {[%clk 0:00:26]} 40. Kg1 {[%clk 0:00:02]}  h5 {[%clk 0:00:23]} 41. Qd1 {[%clk 0:00:02]}  h4 {[%clk 0:00:19]} 42. Qd8+ {[%clk 0:00:01]}  Kf7 {[%clk 0:00:19]} 43. Qxh4 {[%clk 0:00:01]}  Qc5+ {[%clk 0:00:18]} 0-1

[Event "January 9 Early 2024"]
[Site "https://www.chess.com"]
[Date "2024.01.11"]
[Round "10"]
[White "Schnaider, Ilan"]
[Black "Kochiev, Ivan"]
[Result "1/2-1/2"]
[Board "140"]
[TimeControl "180+1"]
[WhiteFideId "169013"]
[BlackFideId "2917890"]
[WhiteElo "2738"]
[BlackElo "2587"]
[WhiteTeam "ARG"]
[BlackTeam "BUL"]
[WhiteClock "0:00:03"]
[BlackClock "0:00:05"]

1. e4 {[%clk 0:02:58]}  c5 {[%clk 0:02:59]} 2. Nf3 {[%clk 0:02:57]}  d6 {[%clk 0:02:59]} 3. Bb5+ {[%clk 0:02:57]}  Nc6 {[%clk 0:02:59]} 4. O-O {[%clk 0:02:57]}  Bd7 {[%clk 0:02:59]} 5. Re1 {[%clk 0:02:57]}  a6 {[%clk 0:03:00]} 6. Bf1 {[%clk 0:02:57]}  Bg4 {[%clk 0:03:00]} 7. c3 {[%clk 0:02:58]}  g6 {[%clk 0:02:59]} 8. h3 {[%clk 0:02:58]}  Bxf3 {[%clk 0:02:59]} 9. Qxf3 {[%clk 0:02:59]}  Bg7 {[%clk 0:03:00]} 10. Na3 {[%clk 0:02:58]}  Nf6 {[%clk 0:02:54]} 11. Nc2 {[%clk 0:02:58]}  Nd7 {[%clk 0:02:54]} 12. Rd1 {[%clk 0:02:54]}  b5 {[%clk 0:02:42]} 13. d4 {[%clk 0:02:54]}  Rc8 {[%clk 0:02:37]} 14. Be3 {[%clk 0:02:52]}  Qc7 {[%clk 0:02:23]} 15. Rac1 {[%clk 0:02:52]}  O-O {[%clk 0:02:22]} 16. Bd3 {[%clk 0:02:16]}  Qb7 {[%clk 0:01:41]} 17. Qg3 {[%clk 0:02:03]}  a5 {[%clk 0:01:36]} 18. h4 {[%clk 0:01:52]}  b4 {[%clk 0:01:31]} 19. h5 {[%clk 0:01:45]}  bxc3 {[%clk 0:01:28]} 20. bxc3 {[%clk 0:01:45]}  Qb2 {[%clk 0:01:29]} 21. Rb1 {[%clk 0:01:35]}  Qxa2 {[%clk 0:01:20]} 22. Ra1 {[%clk 0:01:34]}  Qb2 {[%clk 0:01:19]} 23. Rdb1 {[%clk 0:01:28]}  Qxc3 {[%clk 0:01:17]} 24. Ra3 {[%clk 0:01:28]}  cxd4 {[%clk 0:01:12]} 25. Rxc3 {[%clk 0:01:25]}  dxc3 {[%clk 0:01:11]} 26. hxg6 {[%clk 0:01:08]}  hxg6 {[%clk 0:01:09]} 27. Bc4 {[%clk 0:01:06]}  Nb4 {[%clk 0:01:01]} 28. Bb3 {[%clk 0:01:02]}  Nc5 {[%clk 0:00:51]} 29. Nxb4 {[%clk 0:00:35]}  axb4 {[%clk 0:00:37]} 30. Bxc5 {[%clk 0:00:34]}  Rxc5 {[%clk 0:00:35]} 31. Qxg6 {[%clk 0:00:28]}  c2 {[%clk 0:00:28]} 32. Rc1 {[%clk 0:00:28]}  Rc3 {[%clk 0:00:24]} 33. Qf5 {[%clk 0:00:06]}  Rxb3 {[%clk 0:00:19]} 34. Rxc2 {[%clk 0:00:06]}  Rc3 {[%clk 0:00:13]} 35. Re2 {[%clk 0:00:04]}  b3 {[%clk 0:00:11]} 36. e5 {[%clk 0:00:05]}  Rc1+ {[%clk 0:00:06]} 37. Kh2 {[%clk 0:00:05]}  b2 {[%clk 0:00:06]} 38. Rxb2 {[%clk 0:00:02]}  Bxe5+ {[%clk 0:00:06]} 39. g3 {[%clk 0:00:03]}  Bxb2 {[%clk 0:00:07]} 40. Qg5+ {[%clk 0:00:03]}  Kh7 {[%clk 0:00:05]} 41. Qh5+ {[%clk 0:00:03]}  Kg8 {[%clk 0:00:05]} 42. Qg5+ {[%clk 0:00:04]}  Kh7 {[%clk 0:00:05]} 43. Qh5+ {[%clk 0:00:03]}  Kg8 {[%clk 0:00:05]} 44. Qg5+ {[%clk 0:00:03]} 1/2-1/2

[Event "January 9 Early 2024"]
[Site "https://www.chess.com"]
[Date "2024.01.11"]
[Round "10"]
[White "Haring, Filip"]
[Black "Pinero Rodriguez, Carlos Jose"]
[Result "1-0"]
[Board "144"]
[TimeControl "180+1"]
[WhiteFideId "14933080"]
[BlackFideId "3901726"]
[WhiteElo "2710"]
[BlackElo "2561"]
[WhiteTeam "SVK"]
[BlackTeam "VEN"]
[WhiteClock "0:00:07"]
[BlackClock "0:00:12"]

1. Nf3 {[%clk 0:03:00]}  Nf6 {[%clk 0:02:49]} 2. d4 {[%clk 0:03:00]}  g6 {[%clk 0:02:50]} 3. g3 {[%clk 0:03:01]}  Bg7 {[%clk 0:02:50]} 4. Bg2 {[%clk 0:03:01]}  O-O {[%clk 0:02:50]} 5. O-O {[%clk 0:03:02]}  d6 {[%clk 0:02:50]} 6. b3 {[%clk 0:03:02]}  Nbd7 {[%clk 0:02:51]} 7. Bb2 {[%clk 0:03:03]}  Re8 {[%clk 0:02:51]} 8. Nbd2 {[%clk 0:02:59]}  e5 {[%clk 0:02:51]} 9. dxe5 {[%clk 0:02:58]}  Ng4 {[%clk 0:02:50]} 10. c4 {[%clk 0:02:56]}  Ngxe5 {[%clk 0:02:50]} 11. Nxe5 {[%clk 0:02:57]}  Nxe5 {[%clk 0:02:51]} 12. Qc1 {[%clk 0:02:37]}  Rb8 {[%clk 0:02:45]} 13. h3 {[%clk 0:02:33]}  a6 {[%clk 0:02:42]} 14. Ne4 {[%clk 0:02:29]}  Bf5 {[%clk 0:02:39]} 15. Nc3 {[%clk 0:02:27]}  h5 {[%clk 0:02:35]} 16. Qd2 {[%clk 0:02:19]}  b5 {[%clk 0:02:31]} 17. cxb5 {[%clk 0:02:17]}  axb5 {[%clk 0:02:31]} 18. Nd5 {[%clk 0:02:15]}  c6 {[%clk 0:02:26]} 19. Ne3 {[%clk 0:02:12]}  Be6 {[%clk 0:02:14]} 20. Rfc1 {[%clk 0:02:02]}  d5 {[%clk 0:02:09]} 21. f4 {[%clk 0:01:56]}  Nd7 {[%clk 0:02:07]} 22. Bxg7 {[%clk 0:01:55]}  Kxg7 {[%clk 0:02:08]} 23. Rxc6 {[%clk 0:01:56]}  Qf6 {[%clk 0:02:02]} 24. Rd1 {[%clk 0:01:50]}  Nb6 {[%clk 0:01:49]} 25. Nxd5 {[%clk 0:01:00]}  Nxd5 {[%clk 0:01:44]} 26. Bxd5 {[%clk 0:01:00]}  Red8 {[%clk 0:01:42]} 27. e4 {[%clk 0:00:59]}  Qe7 {[%clk 0:01:24]} 28. Qc3+ {[%clk 0:00:49]}  Kg8 {[%clk 0:01:21]} 29. Rc7 {[%clk 0:00:46]}  Qd6 {[%clk 0:01:10]} 30. Rc6 {[%clk 0:00:29]}  Qe7 {[%clk 0:01:10]} 31. Qc5 {[%clk 0:00:24]}  Qd7 {[%clk 0:00:48]} 32. Rc7 {[%clk 0:00:19]}  Qe8 {[%clk 0:00:48]} 33. Qe7 {[%clk 0:00:14]}  Qxe7 {[%clk 0:00:33]} 34. Rxe7 {[%clk 0:00:15]}  Rd6 {[%clk 0:00:33]} 35. Rc7 {[%clk 0:00:10]}  Rbd8 {[%clk 0:00:31]} 36. Rc5 {[%clk 0:00:11]}  Bxh3 {[%clk 0:00:31]} 37. Rxb5 {[%clk 0:00:10]}  Be6 {[%clk 0:00:28]} 38. a4 {[%clk 0:00:10]}  Kf8 {[%clk 0:00:26]} 39. Ra1 {[%clk 0:00:07]}  Bd7 {[%clk 0:00:16]} 40. Rb7 {[%clk 0:00:07]}  f5 {[%clk 0:00:16]} 41. a5 {[%clk 0:00:06]}  Re8 {[%clk 0:00:15]} 42. a6 {[%clk 0:00:05]}  fxe4 {[%clk 0:00:15]} 43. a7 {[%clk 0:00:03]}  Rxd5 {[%clk 0:00:14]} 44. a8=Q {[%clk 0:00:03]}  Rxa8 {[%clk 0:00:13]} 45. Rxa8+ {[%clk 0:00:04]}  Ke7 {[%clk 0:00:13]} 46. Kf2 {[%clk 0:00:05]}  Rd3 {[%clk 0:00:12]} 47. Raa7 {[%clk 0:00:05]}  Ke6 {[%clk 0:00:10]} 48. Rxd7 {[%clk 0:00:05]}  Rxd7 {[%clk 0:00:10]} 49. Rxd7 {[%clk 0:00:06]}  Kxd7 {[%clk 0:00:11]} 50. Ke3 {[%clk 0:00:07]}  Ke6 {[%clk 0:00:12]} 51. Kxe4 {[%clk 0:00:07]} 1-0

[Event "January 9 Early 2024"]
[Site "https://www.chess.com"]
[Date "2024.01.11"]
[Round "10"]
[White "Osinovsky, Stepan"]
[Black "Derjabin, Ilja"]
[Result "0-1"]
[Board "145"]
[TimeControl "180+1"]
[WhiteFideId "4157354"]
[BlackFideId "14104768"]
[WhiteElo "2412"]
[BlackElo "2523"]
[WhiteTeam "RUS"]
[BlackTeam "UKR"]
[WhiteClock "0:00:03"]
[BlackClock "0:00:09"]

1. e4 {[%clk 0:02:57]}  c5 {[%clk 0:02:59]} 2. Nf3 {[%clk 0:02:57]}  d6 {[%clk 0:03:00]} 3. d4 {[%clk 0:02:56]}  cxd4 {[%clk 0:03:00]} 4. Nxd4 {[%clk 0:02:57]}  Nf6 {[%clk 0:03:01]} 5. Nc3 {[%clk 0:02:57]}  a6 {[%clk 0:03:01]} 6. Be3 {[%clk 0:02:57]}  e5 {[%clk 0:03:01]} 7. Nb3 {[%clk 0:02:57]}  Be7 {[%clk 0:03:01]} 8. Qd2 {[%clk 0:02:57]}  O-O {[%clk 0:03:00]} 9. O-O-O {[%clk 0:02:58]}  Be6 {[%clk 0:03:00]} 10. f4 {[%clk 0:02:57]}  Ng4 {[%clk 0:02:48]} 11. Kb1 {[%clk 0:02:38]}  Nxe3 {[%clk 0:02:45]} 12. Qxe3 {[%clk 0:02:38]}  exf4 {[%clk 0:02:40]} 13. Qxf4 {[%clk 0:02:39]}  Nc6 {[%clk 0:02:38]} 14. Nd5 {[%clk 0:02:33]}  Bxd5 {[%clk 0:02:38]} 15. exd5 {[%clk 0:02:22]}  Ne5 {[%clk 0:02:35]} 16. h4 {[%clk 0:02:20]}  Rc8 {[%clk 0:02:32]} 17. h5 {[%clk 0:02:19]}  Bg5 {[%clk 0:02:25]} 18. Qf5 {[%clk 0:02:08]}  Qf6 {[%clk 0:02:18]} 19. Nd4 {[%clk 0:01:59]}  Qxf5 {[%clk 0:02:03]} 20. Nxf5 {[%clk 0:02:00]}  Rfd8 {[%clk 0:02:03]} 21. g3 {[%clk 0:01:51]}  g6 {[%clk 0:02:00]} 22. Nd4 {[%clk 0:01:43]}  Rc5 {[%clk 0:01:55]} 23. c3 {[%clk 0:01:19]}  Ng4 {[%clk 0:01:49]} 24. Re1 {[%clk 0:01:08]}  b5 {[%clk 0:01:24]} 25. Be2 {[%clk 0:00:56]}  Ne5 {[%clk 0:01:13]} 26. Nf3 {[%clk 0:00:52]}  Bf6 {[%clk 0:01:09]} 27. Nxe5 {[%clk 0:00:52]}  Bxe5 {[%clk 0:01:09]} 28. Bf3 {[%clk 0:00:39]}  Bxg3 {[%clk 0:01:06]} 29. Re7 {[%clk 0:00:39]}  a5 {[%clk 0:00:48]} 30. a3 {[%clk 0:00:38]}  b4 {[%clk 0:00:46]} 31. axb4 {[%clk 0:00:19]}  axb4 {[%clk 0:00:47]} 32. cxb4 {[%clk 0:00:18]}  Rb5 {[%clk 0:00:47]} 33. Rg1 {[%clk 0:00:17]}  Be5 {[%clk 0:00:44]} 34. Rg4 {[%clk 0:00:17]}  Kg7 {[%clk 0:00:30]} 35. Kc2 {[%clk 0:00:14]}  Kf6 {[%clk 0:00:22]} 36. Rc7 {[%clk 0:00:13]}  Rdb8 {[%clk 0:00:21]} 37. Kb3 {[%clk 0:00:13]}  g5 {[%clk 0:00:16]} 38. Rgc4 {[%clk 0:00:11]}  h6 {[%clk 0:00:16]} 39. Be4 {[%clk 0:00:10]}  Bf4 {[%clk 0:00:15]} 40. Bf3 {[%clk 0:00:09]}  R5b6 {[%clk 0:00:15]} 41. R7c6 {[%clk 0:00:09]}  R6b7 {[%clk 0:00:14]} 42. Rc7 {[%clk 0:00:07]}  Rb5 {[%clk 0:00:13]} 43. Ka4 {[%clk 0:00:07]}  Be5 {[%clk 0:00:11]} 44. Ra7 {[%clk 0:00:03]}  Bxb2 {[%clk 0:00:09]} 0-1